bitfinex/quotes_BTCUSD_20240611
["timestamp","ask_amount","ask_price","bid_price","bid_amount"]
[1718071026096,1.73053157,68667.0,68666.0,10.53134653]
[1718071026262,1.8748515,68667.0,68666.0,10.53134653]
[1718071026714,1.3754515,68667.0,68666.0,10.53134653]
[1718071027335,1.22113157,68667.0,68666.0,10.53134653]
[1718071027491,1.23113157,68667.0,68666.0,10.53134653]
[1718071027922,1.69113157,68667.0,68666.0,10.53134653]
[1718071028188,1.51553157,68667.0,68666.0,10.53134653]
[1718071029073,1.04553157,68667.0,68666.0,10.53134653]
[1718071029279,1.04553157,68667.0,68666.0,10.53826224]
[1718071030532,0.82649993,68667.0,68666.0,10.53826224]
[1718071030740,0.82649993,68667.0,68666.0,10.53134653]
[1718071030960,1.04553157,68667.0,68666.0,10.53134653]
[1718071031666,0.84553157,68667.0,68666.0,10.53134653]
[1718071032088,1.04553157,68667.0,68666.0,10.53134653]
[1718071032520,1.14187747,68667.0,68666.0,10.53134653]
[1718071032732,1.87887747,68667.0,68666.0,10.53134653]
[1718071032938,1.40747747,68667.0,68666.0,7.53154653]
[1718071034267,1.90187747,68667.0,68666.0,7.53154653]
[1718071035134,1.44823864,68667.0,68666.0,7.53154653]
[1718071035348,1.39747747,68667.0,68666.0,7.53154653]
[1718071035593,1.40747747,68667.0,68666.0,7.53154653]
[1718071036243,1.90087747,68667.0,68666.0,7.53154653]
[1718071036463,1.40747747,68667.0,68666.0,7.53154653]
[1718071036678,1.40747747,68667.0,68666.0,5.18592558]
[1718071036679,1.51505993,68667.0,68666.0,5.18592558]
[1718071036889,1.51505993,68667.0,68666.0,4.71130242]
[1718071036890,2.78339748,68667.0,68666.0,4.71130242]
[1718071037106,2.94495823,68667.0,68666.0,4.13586436]
[1718071037322,2.97229156,68667.0,68666.0,2.70097915]
[1718071037538,2.97229156,68667.0,68666.0,1.18799051]
[1718071037539,2.9388687,68667.0,68666.0,1.18799051]
[1718071037747,3.07995142,68667.0,68666.0,1.0638595]
[1718071037957,3.45673648,68667.0,68666.0,0.47262833]
[1718071038188,1.63789164,68645.0,68644.0,0.57925209]
[1718071038413,1.63789164,68645.0,68644.0,0.38871404]
[1718071038414,8.3890677,68645.0,68644.0,0.38871404]
[1718071038627,9.2566471,68645.0,68644.0,0.38871404]
[1718071038876,1.63621064,68625.0,68624.0,0.28930204]
[1718071039106,4.28439064,68625.0,68624.0,0.2811553]
[1718071039357,4.47448146,68625.0,68624.0,0.2711553]
[1718071039565,4.4368261,68625.0,68624.0,0.26200585]
[1718071039780,4.40481515,68625.0,68624.0,0.20716298]
[1718071040016,4.40481515,68625.0,68624.0,0.12295679]
[1718071040017,4.48521057,68625.0,68624.0,0.12295679]
[1718071040220,5.35021057,68625.0,68624.0,0.00863908]
[1718071040426,0.60361864,68621.0,68610.0,4.004e-05]
[1718071040670,1.30879864,68621.0,68620.0,0.00209046]
[1718071041165,1.45311857,68621.0,68620.0,0.00209046]
[1718071041631,1.65311857,68621.0,68620.0,0.00209046]
[1718071041636,0.3,68556.0,68533.0,0.07232906]
[1718071041841,0.2,68555.0,68545.0,0.04329598]
[1718071042047,0.00729476,68554.0,68542.0,0.145895]
[1718071042285,0.1,68547.0,68542.0,0.145895]
[1718071042521,0.58218,68546.0,68544.0,0.02280214]
[1718071042764,0.58218,68546.0,68544.0,0.01780214]
[1718071043001,0.14145412,68545.0,68542.0,0.140895]
[1718071043262,0.08,68565.0,68543.0,0.0140895]
[1718071043497,0.43295979,68566.0,68558.0,0.3041]
[1718071043730,0.58348,68564.0,68559.0,0.1]
[1718071043976,0.1,68560.0,68542.0,0.3041]
[1718071044181,0.1,68550.0,68543.0,0.1]
[1718071044400,0.07215996,68546.0,68543.0,0.1]
[1718071044617,0.07215996,68546.0,68533.0,0.08990984]
[1718071044618,0.72779993,68545.0,68544.0,0.0064926]
[1718071044840,0.72779993,68545.0,68534.0,0.245912]
[1718071044841,0.08,68543.0,68534.0,0.245912]
[1718071045056,0.08,68543.0,68533.0,0.07232906]
[1718071045057,0.07215996,68538.0,68533.0,0.07232906]
[1718071045291,0.72779993,68537.0,68529.0,0.07229639]
[1718071045506,0.43295979,68562.0,68533.0,0.37622388]
[1718071045760,0.05136776,68562.0,68536.0,0.319]
[1718071045969,0.2,68579.0,68565.0,0.145847]
[1718071046184,0.58352,68561.0,68558.0,0.145861]
[1718071046399,0.58352,68561.0,68550.0,0.773]
[1718071046662,0.58352,68561.0,68551.0,0.0773]
[1718071046663,0.21647989,68560.0,68551.0,0.0773]
[1718071046922,0.21647989,68560.0,68550.0,0.773]
[1718071046923,0.65567996,68559.0,68550.0,0.773]
[1718071047143,0.58352,68559.0,68550.0,0.773]
[1718071047356,0.35870157,68559.0,68551.0,0.14431993]
[1718071047576,0.35870157,68559.0,68558.0,0.3041]
[1718071047787,0.35870157,68559.0,68553.0,0.145871]
[1718071047788,0.35870157,68559.0,68536.0,0.7996]
[1718071047975,0.35870157,68559.0,68553.0,0.7996]
[1718071048234,0.09528634,68559.0,68558.0,0.145861]
[1718071048450,0.09528634,68559.0,68558.0,0.245309]
[1718071048674,0.09528634,68559.0,68558.0,0.1]
[1718071048889,0.09528634,68559.0,68558.0,0.18996]
[1718071049531,0.09528634,68559.0,68558.0,0.08996]
[1718071049738,0.09528634,68559.0,68558.0,0.18996]
[1718071050172,0.09528634,68559.0,68553.0,0.7996]
[1718071051075,0.09528634,68559.0,68553.0,0.94391993]
[1718071051292,0.0919075,68588.0,68554.0,0.14431993]
[1718071051508,0.08,68598.0,68554.0,0.14431993]
[1718071051509,0.43295979,68566.0,68565.0,0.3041]
[1718071051743,0.58335,68566.0,68554.0,0.14431993]
[1718071051957,0.07215996,68564.0,68555.0,0.3041]
[1718071052168,0.58335,68563.0,68556.0,0.1]
[1718071052643,0.58335,68563.0,68556.0,0.24431993]
[1718071052862,0.58335,68563.0,68556.0,0.1]
[1718071053079,0.58335,68563.0,68557.0,0.1262022]
[1718071053303,0.58335,68563.0,68558.0,0.1]
[1718071053526,0.21903164,68554.0,68553.0,0.7996]
[1718071053743,0.2,68552.0,68544.0,0.30426823]
[1718071054017,0.2,68539.0,68533.0,0.1]
[1718071054335,0.58335,68538.0,68535.0,0.058337]
[1718071054498,0.58335,68538.0,68534.0,0.01]
[1718071054716,0.0919075,68536.0,68534.0,0.01]
[1718071054948,0.0919075,68536.0,68533.0,0.1]
[1718071054949,0.2,68534.0,68533.0,0.1]
[1718071055161,0.57235,68535.0,68533.0,0.1]
[1718071055379,0.57235,68535.0,68533.0,0.24431993]
[1718071055612,0.57235,68535.0,68534.0,0.1]
[1718071055882,0.57235,68535.0,68534.0,0.24431993]
[1718071056088,0.57235,68535.0,68534.0,0.60065192]
[1718071056339,0.32068506,68535.0,68534.0,0.60065192]
[1718071056599,0.30365283,68535.0,68534.0,1.23105192]
[1718071057047,0.30365283,68535.0,68534.0,1.07845192]
[1718071057685,0.30365283,68535.0,68534.0,1.22436392]
[1718071058808,0.30365283,68535.0,68534.0,1.37696392]
[1718071059028,0.30365283,68535.0,68534.0,1.22436392]
[1718071059709,0.43295979,68557.0,68541.0,0.145898]
[1718071060000,0.43295979,68557.0,68534.0,1.07845192]
[1718071060001,0.07215996,68547.0,68534.0,0.7997]
[1718071060207,0.0919075,68546.0,68534.0,0.7997]
[1718071060423,0.5836,68546.0,68535.0,0.14431993]
[1718071060636,0.5836,68546.0,68536.0,0.42309329]
[1718071060867,0.5836,68546.0,68537.0,0.14431993]
[1718071061306,0.5836,68546.0,68538.0,0.1]
[1718071061523,0.50511975,68544.0,68538.0,0.1]
[1718071061737,0.5836,68543.0,68537.0,0.1]
[1718071062187,0.2,68538.0,68533.0,0.1]
[1718071062420,0.0811916,68534.0,68533.0,0.1]
[1718071062638,0.6755075,68534.0,68533.0,0.1]
[1718071062875,0.7836,68534.0,68533.0,0.1]
[1718071063094,0.5836,68534.0,68533.0,0.1]
[1718071063557,1.03885907,68534.0,68533.0,0.1]
[1718071064027,0.89453914,68534.0,68533.0,0.1]
[1718071064493,1.03885907,68534.0,68533.0,0.1]
[1718071065865,0.81982743,68534.0,68533.0,0.11]
[1718071066365,0.6755075,68534.0,68533.0,0.11]
[1718071066650,0.89453914,68534.0,68533.0,0.1]
[1718071067081,0.6755075,68534.0,68533.0,0.1]
[1718071067606,1.01982743,68534.0,68533.0,0.1]
[1718071067844,0.89453914,68534.0,68533.0,0.1]
[1718071068090,0.6755075,68534.0,68533.0,0.1]
[1718071068310,0.6755075,68534.0,68533.0,0.11]
[1718071068533,0.89453914,68534.0,68533.0,0.11]
[1718071068756,0.89453914,68534.0,68533.0,0.1]
[1718071069664,0.6755075,68534.0,68533.0,0.1]
[1718071069899,0.0919075,68529.0,68516.0,0.7863]
[1718071070149,0.0919075,68529.0,68523.0,0.14431993]
[1718071070150,0.5836,68528.0,68523.0,0.14431993]
[1718071071058,0.5836,68528.0,68525.0,0.2171]
[1718071071268,0.5836,68528.0,68526.0,0.3324]
[1718071071931,0.5836,68528.0,68527.0,0.14431993]
[1718071072148,0.5836,68528.0,68527.0,0.28863986]
[1718071073989,0.5836,68528.0,68527.0,0.50573986]
[1718071075326,0.5836,68528.0,68527.0,0.56550652]
[1718071075545,0.5836,68528.0,68527.0,0.30408659]
[1718071075771,0.5836,68528.0,68527.0,0.52118659]
[1718071076003,0.5836,68528.0,68527.0,0.46141993]
[1718071076860,0.5836,68528.0,68527.0,0.60573986]
[1718071077305,0.5836,68528.0,68527.0,1.07383986]
[1718071077529,0.5836,68528.0,68527.0,1.13360588]
[1718071077955,0.5836,68528.0,68527.0,1.07383986]
[1718071078374,0.5836,68528.0,68527.0,1.13361047]
[1718071078592,0.5836,68528.0,68527.0,1.07383986]
[1718071079427,0.5836,68528.0,68527.0,0.92951993]
[1718071080558,0.58342439,68528.0,68527.0,1.07383986]
[1718071080995,0.58342439,68528.0,68527.0,1.13360847]
[1718071082549,0.58342439,68528.0,68527.0,1.28620847]
[1718071082757,0.21903164,68545.0,68527.0,1.28715447]
[1718071082985,0.21903164,68545.0,68529.0,0.1526]
[1718071083202,0.21903164,68545.0,68535.0,0.2171]
[1718071083413,0.58363,68544.0,68536.0,0.30408854]
[1718071083629,0.58363,68544.0,68536.0,0.24431993]
[1718071083839,0.58363,68544.0,68537.0,0.04614199]
[1718071084067,0.21903164,68538.0,68535.0,0.2171]
[1718071084288,0.19097378,68532.0,68527.0,0.000946]
[1718071084499,0.21000542,68524.0,68523.0,0.04342099]
[1718071084713,0.31191292,68524.0,68523.0,0.04342099]
[1718071084951,1.67494292,68524.0,68523.0,0.04342099]
[1718071085173,1.81926285,68524.0,68523.0,0.04342099]
[1718071086012,2.01926285,68524.0,68523.0,0.04342099]
[1718071086248,1.89926285,68524.0,68523.0,0.04342099]
[1718071086479,1.18634292,68524.0,68523.0,0.04342099]
[1718071086690,1.03986285,68524.0,68523.0,0.18774092]
[1718071086864,0.88554292,68524.0,68523.0,0.04342099]
[1718071087336,0.79363542,68524.0,68523.0,0.04342099]
[1718071087607,0.58363,68524.0,68523.0,0.04342099]
[1718071087814,0.58363,68524.0,68523.0,0.05010639]
[1718071088030,0.58363,68524.0,68523.0,0.19442632]
[1718071088243,1.02986285,68524.0,68523.0,0.05010639]
[1718071088451,0.58363,68524.0,68523.0,0.05010639]
[1718071089102,0.58363,68524.0,68523.0,1.08695254]
[1718071089314,0.58363,68524.0,68523.0,0.93360639]
[1718071089527,1.33736285,68524.0,68523.0,0.05010639]
[1718071089739,0.6755375,68524.0,68523.0,0.05010639]
[1718071090383,0.88554292,68524.0,68523.0,0.05010639]
[1718071090584,0.89554292,68524.0,68523.0,0.05010639]
[1718071090792,0.6755375,68524.0,68523.0,0.05010639]
[1718071091431,0.88554292,68524.0,68523.0,0.05010639]
[1718071091655,1.33186285,68524.0,68523.0,0.05010639]
[1718071091875,1.34186285,68524.0,68523.0,0.05010639]
[1718071092066,1.33770356,68524.0,68523.0,0.05010639]
[1718071092476,1.41770356,68524.0,68523.0,0.05010639]
[1718071092630,1.03570356,68524.0,68523.0,0.05010639]
[1718071093091,0.88138363,68524.0,68523.0,0.15100533]
[1718071093318,0.88138363,68524.0,68523.0,0.0066854]
[1718071093530,0.67137821,68524.0,68523.0,0.0066854]
[1718071093686,0.57947071,68524.0,68523.0,0.83720533]
[1718071094070,0.57947071,68524.0,68523.0,0.98152526]
[1718071094516,0.57947071,68524.0,68523.0,1.15034798]
[1718071094729,0.55584056,68524.0,68523.0,1.40294798]
[1718071094947,0.19097378,68545.0,68534.0,0.16162622]
[1718071095165,0.19097378,68545.0,68542.0,0.2171]
[1718071095391,0.43295979,68543.0,68535.0,0.10742572]
[1718071095631,0.0919075,68537.0,68523.0,0.14431993]
[1718071095891,0.0919075,68537.0,68524.0,0.05979214]
[1718071096133,0.19097378,68536.0,68524.0,0.05979214]
[1718071096344,0.19097378,68529.0,68524.0,0.05979214]
[1718071096556,0.2,68553.0,68524.0,0.05979214]
[1718071096557,0.19097378,68532.0,68524.0,0.05979214]
[1718071096768,0.5837,68531.0,68524.0,0.05979214]
[1718071096987,0.5837,68531.0,68523.0,0.14431993]
[1718071097204,0.19097378,68525.0,68523.0,0.14431993]
[1718071097413,0.21000542,68523.0,68521.0,0.03225937]
[1718071097636,0.73390163,68523.0,68522.0,7.62177545]
[1718071097871,0.73390163,68523.0,68522.0,7.56197173]
[1718071098090,0.73390163,68523.0,68522.0,7.70629166]
[1718071098297,0.73390163,68523.0,68522.0,7.56197173]
[1718071098728,0.83580913,68523.0,68522.0,7.56197173]
[1718071098935,0.82580913,68523.0,68522.0,7.56197173]
[1718071099649,0.61580371,68523.0,68522.0,7.56197173]
[1718071099873,0.82580913,68523.0,68522.0,7.56197173]
[1718071100145,0.82580913,68523.0,68522.0,7.70629166]
[1718071100146,0.52389621,68523.0,68522.0,7.70629166]
[1718071101399,0.73390163,68523.0,68522.0,7.70629166]
[1718071101613,0.82580913,68523.0,68522.0,7.56197173]
[1718071101814,1.30552906,68523.0,68522.0,7.56197173]
[1718071102243,0.82580913,68523.0,68522.0,7.56197173]
[1718071104792,0.81822337,68523.0,68522.0,7.56197173]
[1718071106111,0.9725433,68523.0,68522.0,7.56197173]
[1718071106315,0.9625433,68523.0,68522.0,7.56197173]
[1718071106518,0.9725433,68523.0,68522.0,7.56197173]
[1718071106740,0.9625433,68523.0,68522.0,7.56197173]
[1718071107358,0.9725433,68523.0,68522.0,7.56197173]
[1718071107562,1.2901433,68523.0,68522.0,7.56197173]
[1718071107823,1.8513433,68523.0,68522.0,7.56197173]
[1718071108474,1.7413433,68523.0,68522.0,7.56197173]
[1718071108694,0.81822337,68523.0,68522.0,7.70629166]
[1718071110613,0.81822337,68523.0,68522.0,7.56197173]
[1718071111458,0.60821795,68523.0,68522.0,7.56197173]
[1718071111708,0.79919173,68523.0,68522.0,7.56197173]
[1718071111933,0.60821795,68523.0,68522.0,7.56197173]
[1718071112140,0.81822337,68523.0,68522.0,7.56197173]
[1718071112344,0.60821795,68523.0,68522.0,7.70629166]
[1718071112754,0.81822337,68523.0,68522.0,7.56197173]
[1718071112977,0.9625433,68523.0,68522.0,7.56197173]
[1718071113199,0.51631045,68523.0,68522.0,7.56197173]
[1718071113418,0.60821795,68523.0,68522.0,8.05007173]
[1718071114061,0.60821795,68523.0,68522.0,7.56197173]
[1718071114276,1.13436564,68523.0,68522.0,3.82670244]
[1718071114494,0.9725433,68523.0,68522.0,3.82670244]
[1718071114724,1.0525433,68523.0,68522.0,3.82670244]
[1718071115573,0.9725433,68523.0,68522.0,3.82670244]
[1718071116839,0.9725433,68523.0,68522.0,3.82764844]
[1718071117060,0.9625433,68523.0,68522.0,3.82764844]
[1718071117499,0.81822337,68523.0,68522.0,3.97196837]
[1718071119050,0.81822337,68523.0,68522.0,3.82764844]
[1718071119965,0.82822337,68523.0,68522.0,3.82764844]
[1718071120896,0.81822337,68523.0,68522.0,3.82764844]
[1718071122878,0.9725433,68523.0,68522.0,3.82764844]
[1718071124762,2.0481433,68523.0,68522.0,3.82764844]
[1718071124970,2.21546323,68523.0,68522.0,3.82764844]
[1718071125176,2.0711433,68523.0,68522.0,3.82764844]
[1718071125383,2.2246433,68523.0,68522.0,3.82764844]
[1718071125606,2.57601576,68523.0,68522.0,3.82764844]
[1718071125850,2.42471576,68523.0,68522.0,3.49434844]
[1718071126079,2.55441323,68523.0,68522.0,2.97294844]
[1718071126294,2.62657319,68523.0,68522.0,2.97294844]
[1718071126501,2.69016217,68523.0,68522.0,2.97294844]
[1718071126718,1.44541292,68519.0,68518.0,0.21413667]
[1718071126926,4.24010615,68519.0,68518.0,0.21413667]
[1718071127179,4.2742523,68519.0,68518.0,0.21413667]
[1718071127390,3.92950451,68519.0,68518.0,0.21413667]
[1718071127601,3.62672697,68519.0,68518.0,0.21413667]
[1718071127815,3.6661549,68519.0,68518.0,0.21413667]
[1718071128035,3.51095629,68519.0,68518.0,0.21413667]
[1718071128246,3.33095629,68519.0,68518.0,0.21413667]
[1718071128498,3.55326312,68519.0,68518.0,0.21413667]
[1718071128709,4.15826929,68519.0,68518.0,0.21413667]
[1718071128930,4.18126929,68519.0,68518.0,0.21413667]
[1718071129142,4.03349974,68519.0,68518.0,0.21413667]
[1718071129344,0.85786192,68517.0,68516.0,0.025]
[1718071129558,1.49191292,68511.0,68510.0,0.002982]
[1718071129778,0.61191292,68505.0,68504.0,0.3803195]
[1718071129991,1.2725433,68505.0,68504.0,0.3803195]
[1718071130197,1.2955433,68505.0,68504.0,0.38702257]
[1718071130407,1.49037958,68505.0,68504.0,0.3803195]
[1718071130623,1.8891287,68505.0,68504.0,0.38703688]
[1718071131141,1.8891287,68505.0,68504.0,0.3803195]
[1718071131576,1.8891287,68505.0,68334.0,1.41849279]
[1718071131780,1.8891287,68505.0,68450.0,0.14609]
[1718071131781,5.9409,68457.0,68450.0,0.14609]
[1718071131998,5.9409,68457.0,68449.0,0.009493]
[1718071131999,5.9409,68457.0,68451.0,0.00567837]
[1718071132221,5.65045507,68430.0,68427.0,0.02917]
[1718071132476,0.51631045,68429.0,68428.0,0.05357119]
[1718071132702,2.27126552,68430.0,68428.0,0.19971019]
[1718071132916,0.17223996,68463.0,68441.0,0.146109]
[1718071132917,8e-05,68448.0,68441.0,0.146109]
[1718071133119,8e-05,68448.0,68420.0,0.02917]
[1718071133120,0.17215996,68463.0,68443.0,0.1535]
[1718071133328,0.58442,68447.0,68442.0,0.04798893]
[1718071133555,0.58442,68447.0,68420.0,0.02917]
[1718071133765,0.58442,68447.0,68443.0,0.058411]
[1718071134185,0.58442,68447.0,68444.0,0.1535]
[1718071134416,0.58442,68447.0,68446.0,0.1535]
[1718071134667,0.58442,68447.0,68446.0,0.2557]
[1718071134885,0.07215996,68463.0,68452.0,0.1535]
[1718071135159,0.07215996,68470.0,68460.0,0.14607]
[1718071135160,0.5843,68462.0,68460.0,0.14607]
[1718071135371,0.33077,68461.0,68455.0,0.14608]
[1718071135590,0.07215996,68470.0,68465.0,0.1535]
[1718071135803,0.284733,68460.0,68456.0,0.0423981]
[1718071136029,0.284733,68460.0,68458.0,0.146073]
[1718071136235,0.00071,68480.0,68466.0,0.146055]
[1718071136653,0.58418,68476.0,68469.0,0.1535]
[1718071136863,0.58418,68476.0,68470.0,0.146047]
[1718071137072,0.58418,68476.0,68471.0,0.1535]
[1718071137299,0.07215996,68488.0,68476.0,0.1535]
[1718071137550,0.58417,68475.0,68458.0,0.146074]
[1718071137762,0.58417,68475.0,68459.0,0.04240075]
[1718071137763,0.3,68474.0,68459.0,0.04240075]
[1718071137966,0.68417,68473.0,68453.0,0.01730856]
[1718071138174,0.68417,68473.0,68444.0,0.296103]
[1718071138413,0.68417,68473.0,68445.0,0.04240733]
[1718071138414,0.1,68467.0,68445.0,0.04240733]
[1718071138627,0.1,68467.0,68446.0,0.1535]
[1718071138909,0.58417,68466.0,68447.0,0.1535]
[1718071139126,0.07215996,68454.0,68449.0,0.1535]
[1718071139381,0.07215996,68454.0,68451.0,0.1535]
[1718071139585,0.58417,68453.0,68452.0,0.14431993]
[1718071140470,0.55626475,68453.0,68452.0,0.39781993]
[1718071141097,0.55626475,68453.0,68452.0,0.1]
[1718071142133,0.55626475,68453.0,68443.0,0.01791834]
[1718071142343,0.07215996,68444.0,68443.0,0.01791834]
[1718071142556,0.07215996,68444.0,68443.0,0.00567922]
[1718071142766,0.47942597,68444.0,68442.0,0.15178706]
[1718071142978,0.47942597,68444.0,68443.0,0.20840999]
[1718071143184,0.47942597,68444.0,68443.0,0.46190999]
[1718071143366,0.33081009,68444.0,68443.0,0.46190999]
[1718071143731,0.31991941,68444.0,68443.0,0.46190999]
[1718071145197,0.07215996,68454.0,68443.0,0.46190999]
[1718071145410,0.07215996,68461.0,68460.0,0.14607]
[1718071145625,0.07215996,68461.0,68450.0,0.1535]
[1718071145626,0.06532751,68451.0,68450.0,0.146092]
[1718071145834,0.64960751,68451.0,68450.0,0.246092]
[1718071146045,0.07215996,68461.0,68460.0,0.14607]
[1718071146279,0.07215996,68461.0,68460.0,0.1056775]
[1718071146512,0.07215996,68477.0,68460.0,0.29239032]
[1718071146739,0.26888968,68461.0,68460.0,0.25]
[1718071146941,0.07215996,68470.0,68460.0,0.25]
[1718071147150,0.58428,68461.0,68460.0,0.39607]
[1718071147359,0.58428,68461.0,68460.0,0.29414132]
[1718071147813,0.07215996,68481.0,68473.0,0.146042]
[1718071148026,0.07215996,68481.0,68474.0,0.14431993]
[1718071148237,0.07215996,68481.0,68475.0,0.00567662]
[1718071148238,0.58413,68480.0,68475.0,0.00567662]
[1718071148439,0.58413,68480.0,68475.0,0.14999655]
[1718071148670,0.58413,68480.0,68466.0,0.146057]
[1718071148901,0.58413,68480.0,68460.0,0.1]
[1718071148902,0.07215996,68469.0,68467.0,0.29605186]
[1718071149115,0.48413,68468.0,68467.0,0.29605186]
[1718071149328,0.46045866,68468.0,68467.0,0.33403745]
[1718071149530,0.44481521,68468.0,68467.0,0.33403745]
[1718071149747,0.41495044,68468.0,68467.0,0.33403745]
[1718071149948,0.41495044,68468.0,68467.0,0.36047234]
[1718071150189,0.41495044,68468.0,68467.0,0.36141834]
[1718071150633,0.43295979,68490.0,68467.0,0.33498345]
[1718071150848,0.43295979,68490.0,68475.0,0.14431993]
[1718071151134,0.58409,68489.0,68484.0,0.14431993]
[1718071151338,0.07215996,68502.0,68493.0,0.146]
[1718071151555,0.07215996,68502.0,68494.0,0.24999679]
[1718071151771,0.07215996,68502.0,68495.0,0.00567686]
[1718071151982,0.07215996,68508.0,68496.0,0.14431993]
[1718071152181,0.07215996,68508.0,68472.0,0.292089]
[1718071152393,0.07215996,68501.0,68473.0,0.11658554]
[1718071152603,0.07215996,68501.0,68474.0,0.06441554]
[1718071152817,0.07215996,68494.0,68493.0,0.25874619]
[1718071153023,0.65620996,68494.0,68475.0,0.14431993]
[1718071153234,0.65620996,68494.0,68476.0,0.21743539]
[1718071153235,0.07215996,68482.0,68476.0,0.21743539]
[1718071153440,0.58405,68481.0,68476.0,0.21743539]
[1718071153644,0.58405,68481.0,68477.0,0.14431993]
[1718071153852,0.58405,68481.0,68478.0,0.146031]
[1718071154069,0.58405,68481.0,68479.0,0.29034893]
[1718071154532,0.58405,68481.0,68480.0,0.03798082]
[1718071154757,0.58405,68481.0,68480.0,0.18230075]
[1718071155530,0.58405,68481.0,68480.0,0.38268275]
[1718071155745,0.58405,68481.0,68480.0,0.48784371]
[1718071155958,0.43295979,68506.0,68480.0,0.48784371]
[1718071156185,0.07215996,68501.0,68495.0,0.1535]
[1718071156417,0.584,68500.0,68497.0,0.1535]
[1718071156641,0.584,68500.0,68499.0,0.1535]
[1718071156864,0.584,68500.0,68499.0,0.43579807]
[1718071157945,0.584,68500.0,68499.0,0.39781993]
[1718071158277,0.584,68500.0,68499.0,0.43579627]
[1718071158890,0.584,68500.0,68499.0,0.44147634]
[1718071159090,0.584,68500.0,68499.0,0.1]
[1718071159297,0.584,68500.0,68476.0,0.292069]
[1718071159529,0.07215996,68488.0,68486.0,0.15]
[1718071159703,0.584,68487.0,68486.0,0.15]
[1718071159905,0.584,68487.0,68477.0,0.30007]
[1718071160104,0.584,68487.0,68478.0,0.1535]
[1718071160309,0.584,68487.0,68486.0,0.299515]
[1718071160900,0.48870483,68487.0,68486.0,0.51419162]
[1718071161101,0.07215996,68516.0,68506.0,0.1535]
[1718071161304,0.58385,68515.0,68508.0,0.1535]
[1718071161505,0.58385,68515.0,68514.0,0.299455]
[1718071161800,0.0086,68537.0,68518.0,0.1535]
[1718071162014,0.184373,68515.0,68514.0,0.32741]
[1718071162232,0.0086,68537.0,68515.0,0.1535]
[1718071162433,0.07215996,68531.0,68516.0,0.14999238]
[1718071162648,0.0086,68537.0,68517.0,0.14431993]
[1718071162918,0.0086,68537.0,68527.0,0.14431993]
[1718071163169,0.0086,68537.0,68518.0,0.09606839]
[1718071163170,0.4679,68563.0,68529.0,0.14431993]
[1718071163373,0.07215996,68552.0,68542.0,0.145894]
[1718071163619,0.4679,68563.0,68543.0,0.00567245]
[1718071163859,0.07215996,68558.0,68544.0,0.00567245]
[1718071164170,0.0086,68569.0,68546.0,0.14431993]
[1718071164380,0.0086,68569.0,68531.0,0.02249392]
[1718071164381,0.43295979,68564.0,68555.0,0.14431993]
[1718071164611,0.07215996,68559.0,68556.0,0.1]
[1718071165057,0.0086,68569.0,68556.0,0.24452]
[1718071165264,0.02678252,68567.0,68560.0,0.145856]
[1718071165503,0.07215996,68568.0,68561.0,0.24431993]
[1718071165990,0.07215996,68568.0,68561.0,0.40955993]
[1718071166424,0.00060854,68569.0,68562.0,0.38952134]
[1718071166645,0.00060854,68569.0,68563.0,0.24431993]
[1718071166861,0.00060854,68569.0,68564.0,0.00289725]
[1718071167088,0.00060854,68569.0,68565.0,0.14431993]
[1718071167290,0.00060854,68569.0,68566.0,0.10289716]
[1718071167499,0.00060854,68569.0,68567.0,0.14431993]
[1718071167722,0.00060854,68569.0,68568.0,0.10289707]
[1718071167925,0.00060854,68569.0,68568.0,0.393057]
[1718071168337,0.00545299,68574.0,68569.0,0.145837]
[1718071168544,0.00545299,68574.0,68570.0,0.24431993]
[1718071168977,0.00545299,68574.0,68573.0,0.145829]
[1718071169192,0.00545299,68574.0,68573.0,0.39014893]
[1718071169842,0.00545299,68574.0,68573.0,0.1]
[1718071170054,0.00545299,68574.0,68543.0,0.291786]
[1718071170055,0.10545299,68574.0,68556.0,0.145866]
[1718071170268,0.07215996,68570.0,68557.0,0.14431993]
[1718071170522,0.00545299,68574.0,68563.0,0.145851]
[1718071170739,0.07215996,68568.0,68564.0,0.15]
[1718071170944,0.07215996,68568.0,68562.0,0.15]
[1718071171385,0.00545299,68574.0,68570.0,0.145836]
[1718071171386,0.09272,68572.0,68570.0,0.145836]
[1718071171601,0.00545299,68574.0,68573.0,0.145829]
[1718071171827,0.00545299,68574.0,68573.0,0.245829]
[1718071172284,0.00545299,68574.0,68573.0,0.39014893]
[1718071172529,0.00545299,68574.0,68573.0,0.46542893]
[1718071172753,0.00545299,68574.0,68573.0,0.61542893]
[1718071172963,0.00863,68593.0,68584.0,0.07528]
[1718071173127,0.00863,68593.0,68587.0,0.145799]
[1718071173401,0.00863,68593.0,68588.0,0.24431993]
[1718071173606,0.00863,68593.0,68588.0,0.59381335]
[1718071173816,0.00863,68593.0,68589.0,0.04200942]
[1718071174025,0.00863,68593.0,68589.0,0.14431993]
[1718071174239,0.00863,68593.0,68590.0,0.1]
[1718071174653,0.00863,68593.0,68591.0,0.14431993]
[1718071174861,0.00863,68593.0,68591.0,0.70897293]
[1718071175068,0.00863,68593.0,68591.0,0.52077393]
[1718071175271,0.00863,68593.0,68591.0,0.31959993]
[1718071175655,0.00863,68593.0,68591.0,0.1]
[1718071176548,0.08078996,68592.0,68591.0,0.1]
[1718071176785,0.08078996,68592.0,68571.0,0.145832]
[1718071176786,0.1,68584.0,68571.0,0.145832]
[1718071176997,0.1,68584.0,68573.0,0.145829]
[1718071176998,0.07215996,68580.0,68573.0,0.145829]
[1718071177235,0.56488996,68592.0,68576.0,0.07528]
[1718071177469,0.66488996,68592.0,68578.0,0.145818]
[1718071177696,0.07215996,68585.0,68578.0,0.145818]
[1718071178172,0.66488996,68592.0,68579.0,0.535715]
[1718071178371,0.56488996,68592.0,68579.0,0.436415]
[1718071178581,0.00863,68592.0,68583.0,0.07528]
[1718071178789,0.00863,68592.0,68584.0,0.14891449]
[1718071179000,0.00863,68592.0,68587.0,0.07528]
[1718071179214,0.00863,68592.0,68591.0,0.145791]
[1718071179456,0.00863,68592.0,68591.0,0.39011093]
[1718071179672,0.00863,68592.0,68591.0,0.245791]
[1718071180735,0.00863,68592.0,68591.0,0.73400393]
[1718071180944,0.00863,68592.0,68591.0,0.39011093]
[1718071181824,0.00682287,68592.0,68591.0,0.52648093]
[1718071182301,0.00682287,68592.0,68591.0,0.39011093]
[1718071183207,0.07898283,68592.0,68591.0,1.725549]